[Event "Late-Titled-Tuesday-Blitz-February-06-2024"]
[Site "Chess.com"]
[Date "2024.02.06"]
[Round "2"]
[White "Levanzovsky"]
[Black "HanSchut"]
[Result "1-0"]
[WhiteElo "2516"]
[BlackElo "2255"]
[TimeControl "180+1"]
[EndTime "14:15:07 PST"]
[Termination "Levanzovsky won by resignation"]

1. e4 {[%clk 0:03:00.9]} 1... c5 {[%clk 0:02:58.6]} 2. Nf3 {[%clk 0:02:59]} 2...
d6 {[%clk 0:02:58.8]} 3. Bb5+ {[%clk 0:02:54.9]} 3... Bd7 {[%clk 0:02:58.5]} 4.
a4 {[%clk 0:02:54.9]} 4... g6 {[%clk 0:02:55.1]} 5. O-O {[%clk 0:02:54.6]} 5...
Bg7 {[%clk 0:02:55.7]} 6. Nc3 {[%clk 0:02:54.6]} 6... e6 {[%clk 0:02:55.9]} 7.
d4 {[%clk 0:02:53.7]} 7... cxd4 {[%clk 0:02:50.6]} 8. Nxd4 {[%clk 0:02:54.6]}
8... a6 {[%clk 0:02:43.2]} 9. Be2 {[%clk 0:02:45.7]} 9... Nc6 {[%clk 0:02:37]}
10. Nb3 {[%clk 0:02:41]} 10... Qc7 {[%clk 0:02:33.6]} 11. Bf4 {[%clk 0:02:37.8]}
11... e5 {[%clk 0:02:32.5]} 12. Nd5 {[%clk 0:02:37.3]} 12... Qd8 {[%clk
0:02:25]} 13. Be3 {[%clk 0:02:36.5]} 13... Rc8 {[%clk 0:01:41.4]} 14. Bb6 {[%clk
0:02:35.1]} 14... Qg5 {[%clk 0:01:40.6]} 15. Nc7+ {[%clk 0:02:31.7]} 15... Ke7
{[%clk 0:01:35.2]} 16. Nd5+ {[%clk 0:02:13.1]} 16... Ke8 {[%clk 0:01:12.5]} 17.
g3 {[%clk 0:02:00.1]} 17... Nge7 {[%clk 0:01:05.2]} 18. Be3 {[%clk 0:01:51.5]}
1-0

[Event "Late-Titled-Tuesday-Blitz-February-06-2024"]
[Site "Chess.com"]
[Date "2024.02.06"]
[Round "2"]
[White "dropstoneDP"]
[Black "SaqoChess_Twitch"]
[Result "0-1"]
[WhiteElo "2996"]
[BlackElo "2640"]
[TimeControl "180+1"]
[EndTime "14:15:13 PST"]
[Termination "SaqoChess_Twitch won by resignation"]

1. e4 {[%clk 0:03:00.9]} 1... c5 {[%clk 0:02:59.7]} 2. Nf3 {[%clk 0:03:00.6]}
2... d6 {[%clk 0:03:00.2]} 3. d4 {[%clk 0:03:00]} 3... cxd4 {[%clk 0:03:01.1]}
4. Nxd4 {[%clk 0:03:00.3]} 4... Nf6 {[%clk 0:03:01.8]} 5. Nc3 {[%clk 0:02:59.7]}
5... g6 {[%clk 0:03:02.1]} 6. f3 {[%clk 0:02:57.2]} 6... Bg7 {[%clk 0:03:02.7]}
7. Be3 {[%clk 0:02:57.5]} 7... O-O {[%clk 0:03:03.3]} 8. Qd2 {[%clk 0:02:57.5]}
8... Nc6 {[%clk 0:03:03.9]} 9. Bc4 {[%clk 0:02:57.3]} 9... Bd7 {[%clk
0:03:03.8]} 10. O-O-O {[%clk 0:02:56.4]} 10... Rc8 {[%clk 0:03:04.2]} 11. Bb3
{[%clk 0:02:54.9]} 11... Nxd4 {[%clk 0:03:04.6]} 12. Bxd4 {[%clk 0:02:54.8]}
12... b5 {[%clk 0:03:05.1]} 13. Nd5 {[%clk 0:02:50.1]} 13... Nxd5 {[%clk
0:03:05]} 14. exd5 {[%clk 0:02:47.4]} 14... Bxd4 {[%clk 0:03:04.1]} 15. Qxd4
{[%clk 0:02:47.7]} 15... a5 {[%clk 0:03:05]} 16. a3 {[%clk 0:02:41.1]} 16... b4
{[%clk 0:03:05.1]} 17. axb4 {[%clk 0:02:40.6]} 17... axb4 {[%clk 0:03:06]} 18.
Rhe1 {[%clk 0:02:31.7]} 18... Re8 {[%clk 0:03:01.8]} 19. Qxb4 {[%clk 0:02:30.8]}
19... Rb8 {[%clk 0:03:01.5]} 20. Qc3 {[%clk 0:02:24.1]} 20... Qb6 {[%clk
0:03:01.2]} 21. Kd2 {[%clk 0:02:18.5]} 21... Qf2+ {[%clk 0:02:32.2]} 22. Re2
{[%clk 0:02:18.2]} 22... Qh4 {[%clk 0:02:33.1]} 23. g3 {[%clk 0:02:16.6]} 23...
Qh6+ {[%clk 0:02:30.6]} 24. Ke1 {[%clk 0:02:05]} 24... Bb5 {[%clk 0:02:14.5]}
25. Red2 {[%clk 0:01:58.3]} 25... Rbc8 {[%clk 0:02:01.3]} 26. Qd4 {[%clk
0:01:55.9]} 26... e5 {[%clk 0:01:53.5]} 27. dxe6 {[%clk 0:01:54.7]} 27... Bd7
{[%clk 0:01:53.5]} 28. Kf1 {[%clk 0:01:52.1]} 28... Bxe6 {[%clk 0:01:52.6]} 29.
Bxe6 {[%clk 0:01:52.6]} 29... Rxe6 {[%clk 0:01:53.5]} 30. Re1 {[%clk 0:01:45.6]}
30... Qh3+ {[%clk 0:01:39.9]} 31. Kf2 {[%clk 0:01:27.8]} 31... Qxh2+ {[%clk
0:01:39.8]} 32. Kf1 {[%clk 0:01:28.5]} 32... Qh1+ {[%clk 0:01:37.6]} 0-1

[Event "Late-Titled-Tuesday-Blitz-February-06-2024"]
[Site "Chess.com"]
[Date "2024.02.06"]
[Round "2"]
[White "VitaliyChayka"]
[Black "Jospem"]
[Result "0-1"]
[WhiteElo "2414"]
[BlackElo "3039"]
[TimeControl "180+1"]
[EndTime "14:15:23 PST"]
[Termination "Jospem won by checkmate"]

1. d4 {[%clk 0:03:00.9]} 1... Nf6 {[%clk 0:03:00]} 2. Bf4 {[%clk 0:03:01.4]}
2... e6 {[%clk 0:03:00.3]} 3. e3 {[%clk 0:03:02.1]} 3... b6 {[%clk 0:03:01]} 4.
Nf3 {[%clk 0:03:02]} 4... Bb7 {[%clk 0:03:01.4]} 5. h3 {[%clk 0:03:02.3]} 5...
d6 {[%clk 0:03:02]} 6. Be2 {[%clk 0:03:02.8]} 6... Nbd7 {[%clk 0:03:02.6]} 7.
O-O {[%clk 0:03:03.1]} 7... Be7 {[%clk 0:03:03.3]} 8. a4 {[%clk 0:03:03.7]} 8...
h6 {[%clk 0:03:03.9]} 9. a5 {[%clk 0:03:04.1]} 9... g5 {[%clk 0:03:04.5]} 10.
Bh2 {[%clk 0:03:00.6]} 10... g4 {[%clk 0:03:04.7]} 11. hxg4 {[%clk 0:03:00.3]}
11... Nxg4 {[%clk 0:03:05.6]} 12. Bg3 {[%clk 0:02:56.5]} 12... Rb8 {[%clk
0:03:04.8]} 13. c4 {[%clk 0:02:42.2]} 13... h5 {[%clk 0:03:04.4]} 14. Nfd2
{[%clk 0:02:34.4]} 14... Ndf6 {[%clk 0:03:03]} 15. Nc3 {[%clk 0:02:28.9]} 15...
h4 {[%clk 0:03:00.3]} 16. Bf4 {[%clk 0:02:23.2]} 16... h3 {[%clk 0:02:58]} 17.
Bf3 {[%clk 0:02:07.5]} 17... hxg2 {[%clk 0:02:56.8]} 18. Kxg2 {[%clk 0:02:05.4]}
18... Rg8 {[%clk 0:02:56.7]} 19. Bg3 {[%clk 0:02:04.3]} 19... Nh5 {[%clk
0:02:52]} 20. Bxb7 {[%clk 0:02:03.2]} 20... Nxg3 {[%clk 0:02:43.7]} 21. Bc6+
{[%clk 0:02:02.7]} 21... Kf8 {[%clk 0:02:44.4]} 22. Rg1 {[%clk 0:01:32.9]} 22...
Nf5 {[%clk 0:02:43.9]} 23. Kf3 {[%clk 0:01:28.8]} 23... Bh4 {[%clk 0:02:28.7]}
24. Rxg4 {[%clk 0:01:12.8]} 24... Rxg4 {[%clk 0:02:29.6]} 25. Kxg4 {[%clk
0:01:13.6]} 25... Bxf2 {[%clk 0:02:30]} 26. Qh1 {[%clk 0:01:03.8]} 26... Qf6
{[%clk 0:02:29.4]} 27. Nde4 {[%clk 0:00:53.9]} 27... Nxe3+ {[%clk 0:02:27.9]}
28. Kh5 {[%clk 0:00:16.7]} 28... Qg6# {[%clk 0:02:26.9]} 0-1

[Event "Late-Titled-Tuesday-Blitz-February-06-2024"]
[Site "Chess.com"]
[Date "2024.02.06"]
[Round "2"]
[White "bescmelasti"]
[Black "LyonBeast"]
[Result "0-1"]
[WhiteElo "2666"]
[BlackElo "3159"]
[TimeControl "180+1"]
[EndTime "14:15:26 PST"]
[Termination "LyonBeast won by resignation"]

1. e4 {[%clk 0:03:00.9]} 1... c5 {[%clk 0:02:59.4]} 2. Nf3 {[%clk 0:03:00]} 2...
Nc6 {[%clk 0:02:59.3]} 3. Bb5 {[%clk 0:02:59.8]} 3... g6 {[%clk 0:02:59.4]} 4.
Bxc6 {[%clk 0:02:57.3]} 4... bxc6 {[%clk 0:03:00.3]} 5. O-O {[%clk 0:02:57.1]}
5... Bg7 {[%clk 0:02:58.8]} 6. Re1 {[%clk 0:02:57.5]} 6... Qc7 {[%clk
0:02:50.5]} 7. d3 {[%clk 0:02:52.8]} 7... d6 {[%clk 0:02:44.1]} 8. c3 {[%clk
0:02:27.8]} 8... Nf6 {[%clk 0:02:40.6]} 9. Nbd2 {[%clk 0:02:24.1]} 9... e5
{[%clk 0:02:37.5]} 10. d4 {[%clk 0:02:17.9]} 10... cxd4 {[%clk 0:02:37.7]} 11.
cxd4 {[%clk 0:02:18.8]} 11... exd4 {[%clk 0:02:38.6]} 12. Nxd4 {[%clk
0:02:19.5]} 12... O-O {[%clk 0:02:38.1]} 13. Qc2 {[%clk 0:02:09.1]} 13... c5
{[%clk 0:02:35.7]} 14. Nb5 {[%clk 0:02:05.7]} 14... Qc6 {[%clk 0:02:36]} 15. Nc3
{[%clk 0:02:05.5]} 15... Re8 {[%clk 0:02:35.2]} 16. Nc4 {[%clk 0:01:56.7]} 16...
d5 {[%clk 0:02:33.4]} 17. Nd2 {[%clk 0:01:40.2]} 17... Bf5 {[%clk 0:02:30.3]}
18. f3 {[%clk 0:01:31.6]} 18... Rad8 {[%clk 0:02:28.8]} 19. Re2 {[%clk
0:00:59.4]} 19... dxe4 {[%clk 0:02:27.7]} 20. Ndxe4 {[%clk 0:01:00.3]} 20...
Nxe4 {[%clk 0:02:27]} 21. Nxe4 {[%clk 0:00:56.2]} 21... Bd4+ {[%clk 0:02:24.1]}
22. Be3 {[%clk 0:00:55.9]} 22... Bxe4 {[%clk 0:02:24.1]} 23. fxe4 {[%clk
0:00:51.8]} 23... Qxe4 {[%clk 0:02:23.6]} 24. Qxe4 {[%clk 0:00:44.1]} 24... Rxe4
{[%clk 0:02:24.5]} 25. Rae1 {[%clk 0:00:44.1]} 25... Rde8 {[%clk 0:02:23.2]} 26.
Kf2 {[%clk 0:00:42.6]} 26... Rxe3 {[%clk 0:02:22.4]} 27. Rxe3 {[%clk 0:00:42.8]}
27... f5 {[%clk 0:02:18.6]} 28. Kf3 {[%clk 0:00:42.3]} 28... Bxe3 {[%clk
0:02:18.8]} 29. Rxe3 {[%clk 0:00:43.2]} 29... Rxe3+ {[%clk 0:02:18.8]} 30. Kxe3
{[%clk 0:00:44.1]} 30... Kf7 {[%clk 0:02:19.2]} 31. Kd3 {[%clk 0:00:40.5]} 31...
Ke6 {[%clk 0:02:19.3]} 32. Kc4 {[%clk 0:00:41.4]} 32... Kd6 {[%clk 0:02:19.9]}
33. Kb5 {[%clk 0:00:41.6]} 33... f4 {[%clk 0:02:20.3]} 0-1

[Event "Late-Titled-Tuesday-Blitz-February-06-2024"]
[Site "Chess.com"]
[Date "2024.02.06"]
[Round "2"]
[White "GadimbayliA"]
[Black "elchacal664"]
[Result "1-0"]
[WhiteElo "2810"]
[BlackElo "2401"]
[TimeControl "180+1"]
[EndTime "14:15:27 PST"]
[Termination "GadimbayliA won by resignation"]

1. e4 {[%clk 0:03:00.9]} 1... d6 {[%clk 0:02:50.7]} 2. d4 {[%clk 0:03:00.8]}
2... g6 {[%clk 0:02:51.3]} 3. Nc3 {[%clk 0:03:01.3]} 3... Bg7 {[%clk 0:02:52.2]}
4. Nf3 {[%clk 0:03:02]} 4... c6 {[%clk 0:02:51.3]} 5. Be2 {[%clk 0:03:02.5]}
5... Nf6 {[%clk 0:02:49.3]} 6. O-O {[%clk 0:03:03.4]} 6... O-O {[%clk
0:02:49.1]} 7. a4 {[%clk 0:03:03.9]} 7... Bg4 {[%clk 0:02:47]} 8. h3 {[%clk
0:03:03.4]} 8... Bxf3 {[%clk 0:02:47]} 9. Bxf3 {[%clk 0:03:04.3]} 9... e5 {[%clk
0:02:47]} 10. Be3 {[%clk 0:03:05.2]} 10... Nbd7 {[%clk 0:02:46.3]} 11. dxe5
{[%clk 0:03:05.7]} 11... Nxe5 {[%clk 0:02:43.2]} 12. Be2 {[%clk 0:03:06]} 12...
d5 {[%clk 0:02:35.9]} 13. exd5 {[%clk 0:02:16.9]} 13... Nxd5 {[%clk 0:02:34.6]}
14. Nxd5 {[%clk 0:02:17.1]} 14... cxd5 {[%clk 0:02:34.6]} 15. c3 {[%clk
0:02:17.8]} 15... Nc4 {[%clk 0:02:33.2]} 16. Bxc4 {[%clk 0:02:15.6]} 16... dxc4
{[%clk 0:02:34.1]} 17. Qf3 {[%clk 0:02:16]} 17... Qc7 {[%clk 0:02:21.3]} 18. a5
{[%clk 0:02:16.2]} 18... Qc6 {[%clk 0:02:18.4]} 19. Qxc6 {[%clk 0:02:13.8]}
19... bxc6 {[%clk 0:02:19.3]} 20. Ra4 {[%clk 0:02:14.7]} 20... Rab8 {[%clk
0:02:12]} 21. Bc1 {[%clk 0:02:11]} 21... Rb5 {[%clk 0:02:10.2]} 22. Rxc4 {[%clk
0:02:11.2]} 22... c5 {[%clk 0:02:06.7]} 23. Ra4 {[%clk 0:02:05.7]} 23... Rc8
{[%clk 0:02:00]} 24. Rd1 {[%clk 0:02:03.5]} 24... c4 {[%clk 0:01:59.8]} 25. g3
{[%clk 0:02:03.1]} 25... Bf6 {[%clk 0:01:59]} 26. Kg2 {[%clk 0:02:01.7]} 26...
Kg7 {[%clk 0:01:54]} 27. Rd7 {[%clk 0:01:50.9]} 27... a6 {[%clk 0:01:51.3]} 28.
Rd6 {[%clk 0:01:51.1]} 28... Re8 {[%clk 0:01:39.6]} 29. Rxa6 {[%clk 0:01:49.4]}
29... Re1 {[%clk 0:01:38.3]} 30. Bh6+ {[%clk 0:01:45.9]} 30... Kxh6 {[%clk
0:01:37.1]} 31. Rxf6 {[%clk 0:01:46.8]} 31... Rxb2 {[%clk 0:01:35.9]} 32. a6
{[%clk 0:01:45.6]} 32... Kg7 {[%clk 0:01:33.9]} 33. a7 {[%clk 0:01:44.7]} 33...
Re8 {[%clk 0:01:29.3]} 34. Rc6 {[%clk 0:01:40.3]} 34... Ra8 {[%clk 0:01:25.7]}
35. Rc7 {[%clk 0:01:40.8]} 35... Rb3 {[%clk 0:01:24.2]} 36. Raxc4 {[%clk
0:01:40.7]} 1-0

[Event "Late-Titled-Tuesday-Blitz-February-06-2024"]
[Site "Chess.com"]
[Date "2024.02.06"]
[Round "2"]
[White "chenxiaoyuer"]
[Black "Bkmzzzzz"]
[Result "1-0"]
[WhiteElo "2741"]
[BlackElo "2409"]
[TimeControl "180+1"]
[EndTime "14:15:33 PST"]
[Termination "chenxiaoyuer won by resignation"]

1. e4 {[%clk 0:03:00.9]} 1... d6 {[%clk 0:02:59.3]} 2. d4 {[%clk 0:03:00.1]}
2... Nf6 {[%clk 0:02:59.6]} 3. Nc3 {[%clk 0:02:59.5]} 3... e5 {[%clk 0:03:00.1]}
4. Nf3 {[%clk 0:02:58.1]} 4... Nbd7 {[%clk 0:02:59.6]} 5. Bc4 {[%clk 0:02:57.2]}
5... Be7 {[%clk 0:03:00.1]} 6. O-O {[%clk 0:02:55.7]} 6... O-O {[%clk
0:03:00.7]} 7. a4 {[%clk 0:02:56.3]} 7... c6 {[%clk 0:03:01.2]} 8. b3 {[%clk
0:02:49.6]} 8... b6 {[%clk 0:02:59.8]} 9. Bg5 {[%clk 0:02:44.1]} 9... a6 {[%clk
0:02:57.5]} 10. d5 {[%clk 0:02:38.8]} 10... cxd5 {[%clk 0:02:44.5]} 11. Nxd5
{[%clk 0:02:37.8]} 11... Nxd5 {[%clk 0:02:32.9]} 12. Qxd5 {[%clk 0:02:24.6]}
12... Ra7 {[%clk 0:01:50.8]} 13. Bxe7 {[%clk 0:02:17.6]} 13... Qxe7 {[%clk
0:01:50]} 14. Rad1 {[%clk 0:02:18.5]} 14... Bb7 {[%clk 0:01:38.6]} 15. Qxd6
{[%clk 0:02:15.3]} 15... Qxd6 {[%clk 0:01:39.1]} 16. Rxd6 {[%clk 0:02:15.7]}
16... Bxe4 {[%clk 0:01:39.7]} 17. Rfd1 {[%clk 0:02:13.8]} 17... Bxf3 {[%clk
0:00:34.8]} 18. gxf3 {[%clk 0:02:14.7]} 18... Nf6 {[%clk 0:00:34.6]} 19. Rxb6
{[%clk 0:02:13.2]} 19... a5 {[%clk 0:00:35.2]} 20. Rb5 {[%clk 0:02:10.5]} 20...
e4 {[%clk 0:00:32.9]} 21. fxe4 {[%clk 0:02:08.7]} 21... Nxe4 {[%clk 0:00:33.8]}
22. Rdd5 {[%clk 0:02:08.5]} 22... Nc3 {[%clk 0:00:29.4]} 23. Rxa5 {[%clk
0:02:08.8]} 23... Re7 {[%clk 0:00:29.8]} 24. Re5 {[%clk 0:02:08.8]} 24... Rd7
{[%clk 0:00:30]} 25. Rac5 {[%clk 0:02:08.8]} 25... Rd2 {[%clk 0:00:26.9]} 26.
Bxf7+ {[%clk 0:02:07.3]} 26... Rxf7 {[%clk 0:00:27.5]} 27. Re8+ {[%clk
0:02:05.7]} 27... Rf8 {[%clk 0:00:27.3]} 28. Rxf8+ {[%clk 0:02:06.6]} 28... Kxf8
{[%clk 0:00:28.2]} 29. Rxc3 {[%clk 0:02:07.5]} 1-0

[Event "Late-Titled-Tuesday-Blitz-February-06-2024"]
[Site "Chess.com"]
[Date "2024.02.06"]
[Round "2"]
[White "RichardLeyvaP"]
[Black "Chessdude1987"]
[Result "0-1"]
[WhiteElo "2505"]
[BlackElo "2297"]
[TimeControl "180+1"]
[EndTime "14:15:37 PST"]
[Termination "Chessdude1987 won by resignation"]

1. e4 {[%clk 0:02:59.1]} 1... e6 {[%clk 0:02:54.1]} 2. d4 {[%clk 0:02:58.6]}
2... d5 {[%clk 0:02:53.8]} 3. Nc3 {[%clk 0:02:58.9]} 3... Nf6 {[%clk 0:02:50.6]}
4. Bg5 {[%clk 0:02:58.5]} 4... h6 {[%clk 0:02:49.9]} 5. Bxf6 {[%clk 0:02:57]}
5... Qxf6 {[%clk 0:02:49.2]} 6. Nf3 {[%clk 0:02:57.9]} 6... Bb4 {[%clk
0:02:47.7]} 7. e5 {[%clk 0:02:57]} 7... Qd8 {[%clk 0:02:45.9]} 8. a3 {[%clk
0:02:56.3]} 8... Be7 {[%clk 0:02:42.2]} 9. Bd3 {[%clk 0:02:56.5]} 9... c5 {[%clk
0:02:41.8]} 10. dxc5 {[%clk 0:02:56.7]} 10... Bxc5 {[%clk 0:02:40.7]} 11. O-O
{[%clk 0:02:56.1]} 11... Nc6 {[%clk 0:02:40.9]} 12. b4 {[%clk 0:02:38.1]} 12...
Bb6 {[%clk 0:02:34.3]} 13. Re1 {[%clk 0:02:27.9]} 13... Bd7 {[%clk 0:02:28.8]}
14. Na4 {[%clk 0:02:25.7]} 14... Nxe5 {[%clk 0:02:14.4]} 15. Nxe5 {[%clk
0:02:25.3]} 15... Bxa4 {[%clk 0:02:13.9]} 16. Qh5 {[%clk 0:02:25.2]} 16... Qf6
{[%clk 0:02:08.8]} 17. Nxf7 {[%clk 0:02:24]} 17... O-O {[%clk 0:02:07.9]} 18.
Ne5 {[%clk 0:02:13.8]} 18... Bxf2+ {[%clk 0:01:53]} 19. Kh1 {[%clk 0:02:14.2]}
19... Bxe1 {[%clk 0:01:53.1]} 20. Rxe1 {[%clk 0:02:14.2]} 20... Bxc2 {[%clk
0:01:37.1]} 21. Qe2 {[%clk 0:01:59.9]} 21... Bxd3 {[%clk 0:01:27.1]} 22. Qxd3
{[%clk 0:02:00.1]} 22... Qf5 {[%clk 0:01:23.1]} 23. Qd1 {[%clk 0:01:55.8]} 23...
Rac8 {[%clk 0:01:18.8]} 24. h3 {[%clk 0:01:56]} 24... Rc2 {[%clk 0:01:14.9]} 25.
Nf3 {[%clk 0:01:56.2]} 25... Rb2 {[%clk 0:00:54.2]} 26. Nd4 {[%clk 0:01:48.1]}
26... Qf2 {[%clk 0:00:52.1]} 27. Rg1 {[%clk 0:01:48.3]} 27... Rd2 {[%clk
0:00:50.2]} 0-1

[Event "Late-Titled-Tuesday-Blitz-February-06-2024"]
[Site "Chess.com"]
[Date "2024.02.06"]
[Round "2"]
[White "Supergiuly"]
[Black "Malev212"]
[Result "0-1"]
[WhiteElo "2365"]
[BlackElo "2657"]
[TimeControl "180+1"]
[EndTime "14:15:40 PST"]
[Termination "Malev212 won by resignation"]

1. e4 {[%clk 0:03:00.9]} 1... c5 {[%clk 0:02:59.6]} 2. Nf3 {[%clk 0:03:00.5]}
2... d6 {[%clk 0:02:59.8]} 3. d4 {[%clk 0:03:00.7]} 3... Nf6 {[%clk 0:02:58.7]}
4. Nc3 {[%clk 0:02:58]} 4... cxd4 {[%clk 0:02:58.7]} 5. Nxd4 {[%clk 0:02:58.9]}
5... g6 {[%clk 0:02:58]} 6. Be2 {[%clk 0:02:52.9]} 6... Bg7 {[%clk 0:02:56]} 7.
O-O {[%clk 0:02:52.6]} 7... a6 {[%clk 0:02:55.7]} 8. f4 {[%clk 0:02:52.5]} 8...
Nbd7 {[%clk 0:02:54.9]} 9. Be3 {[%clk 0:02:51.8]} 9... b5 {[%clk 0:02:54.4]} 10.
a3 {[%clk 0:02:50.8]} 10... Bb7 {[%clk 0:02:53.6]} 11. Kh1 {[%clk 0:02:49.5]}
11... Nxe4 {[%clk 0:02:48.7]} 12. Nxe4 {[%clk 0:02:47.8]} 12... Bxe4 {[%clk
0:02:48.4]} 13. f5 {[%clk 0:02:48.1]} 13... O-O {[%clk 0:02:47.1]} 14. fxg6
{[%clk 0:02:46.1]} 14... hxg6 {[%clk 0:02:44.2]} 15. Bf3 {[%clk 0:02:44.5]}
15... Bxf3 {[%clk 0:02:42]} 16. Qxf3 {[%clk 0:02:45.4]} 16... Ne5 {[%clk
0:02:41.8]} 17. Qe2 {[%clk 0:02:37.5]} 17... Rc8 {[%clk 0:02:37.5]} 18. c3
{[%clk 0:02:36.6]} 18... Qd7 {[%clk 0:02:35.2]} 19. Rad1 {[%clk 0:02:35]} 19...
d5 {[%clk 0:02:30.6]} 20. Nb3 {[%clk 0:02:02.8]} 20... Nc4 {[%clk 0:02:27.9]}
21. Nc5 {[%clk 0:01:59.2]} 21... Qc6 {[%clk 0:02:26.7]} 22. Nd3 {[%clk
0:01:49.7]} 22... e5 {[%clk 0:02:23.7]} 23. Nb4 {[%clk 0:01:49.2]} 23... Qb7
{[%clk 0:02:19.5]} 24. Nxd5 {[%clk 0:01:48.2]} 24... Rcd8 {[%clk 0:02:07.4]} 25.
Qf3 {[%clk 0:01:47.1]} 25... Rxd5 {[%clk 0:02:05.8]} 26. Rxd5 {[%clk 0:01:40.5]}
26... Nxe3 {[%clk 0:02:04.5]} 27. Qxe3 {[%clk 0:01:23.9]} 27... Qxd5 {[%clk
0:02:03]} 28. h3 {[%clk 0:01:24]} 28... e4 {[%clk 0:02:01.3]} 29. Re1 {[%clk
0:01:23]} 29... Re8 {[%clk 0:02:00.4]} 30. Qa7 {[%clk 0:01:21.3]} 30... Qd2
{[%clk 0:01:57.5]} 31. Rf1 {[%clk 0:01:21.5]} 31... f5 {[%clk 0:01:57]} 32. Qxa6
{[%clk 0:01:18.7]} 32... Kh7 {[%clk 0:01:54.8]} 33. Qxb5 {[%clk 0:01:16.2]}
33... Qd3 {[%clk 0:01:54.5]} 34. Qxe8 {[%clk 0:01:13.1]} 34... Qxf1+ {[%clk
0:01:53.4]} 35. Kh2 {[%clk 0:01:13.1]} 35... Qf4+ {[%clk 0:01:52.7]} 36. Kg1
{[%clk 0:01:11.9]} 36... e3 {[%clk 0:01:52.6]} 37. h4 {[%clk 0:00:58.4]} 37...
Qf2+ {[%clk 0:01:50.8]} 0-1

[Event "Late-Titled-Tuesday-Blitz-February-06-2024"]
[Site "Chess.com"]
[Date "2024.02.06"]
[Round "2"]
[White "ValeriyGrinev"]
[Black "Jarrahi2452"]
[Result "1/2-1/2"]
[WhiteElo "2547"]
[BlackElo "2798"]
[TimeControl "180+1"]
[EndTime "14:15:41 PST"]
[Termination "Game drawn by agreement"]

1. d4 {[%clk 0:03:00.9]} 1... d5 {[%clk 0:02:59.5]} 2. c4 {[%clk 0:03:00.5]}
2... c6 {[%clk 0:02:59.6]} 3. cxd5 {[%clk 0:03:00.2]} 3... cxd5 {[%clk
0:02:59.7]} 4. Bf4 {[%clk 0:03:00.9]} 4... Nc6 {[%clk 0:02:57.7]} 5. e3 {[%clk
0:03:01.5]} 5... Nf6 {[%clk 0:02:57.1]} 6. Nc3 {[%clk 0:03:02]} 6... Bf5 {[%clk
0:02:56.1]} 7. Qb3 {[%clk 0:03:00.2]} 7... Na5 {[%clk 0:02:54.4]} 8. Qa4+ {[%clk
0:03:00.4]} 8... Bd7 {[%clk 0:02:54.5]} 9. Qc2 {[%clk 0:03:00.5]} 9... e6 {[%clk
0:02:49.7]} 10. Nf3 {[%clk 0:02:59.7]} 10... Rc8 {[%clk 0:02:47.3]} 11. Bd3
{[%clk 0:03:00.1]} 11... Nc4 {[%clk 0:02:45.3]} 12. O-O {[%clk 0:02:59.3]} 12...
Bd6 {[%clk 0:02:43]} 13. Bxc4 {[%clk 0:02:32.4]} 13... Bxf4 {[%clk 0:02:41.4]}
14. Bxd5 {[%clk 0:02:26.6]} 14... Bxh2+ {[%clk 0:02:34.6]} 15. Nxh2 {[%clk
0:02:24.5]} 15... Nxd5 {[%clk 0:02:29.1]} 16. Qb3 {[%clk 0:02:24.4]} 16... Bc6
{[%clk 0:02:23.1]} 17. Qa3 {[%clk 0:01:54]} 17... a6 {[%clk 0:02:15.3]} 18. Ne4
{[%clk 0:01:53.1]} 18... Nb4 {[%clk 0:01:44.1]} 19. Qxb4 {[%clk 0:01:29.7]}
19... Bxe4 {[%clk 0:01:43.6]} 20. f3 {[%clk 0:01:29]} 20... Bc6 {[%clk
0:01:42.8]} 21. Ng4 {[%clk 0:01:27.8]} 21... Qe7 {[%clk 0:01:41.2]} 22. Qxe7+
{[%clk 0:01:18.7]} 22... Kxe7 {[%clk 0:01:42.1]} 23. Rfc1 {[%clk 0:01:18.5]}
23... f6 {[%clk 0:01:37.5]} 24. Nf2 {[%clk 0:01:18.5]} 24... Bd7 {[%clk
0:01:34.4]} 25. Nd3 {[%clk 0:01:18.3]} 25... Rxc1+ {[%clk 0:01:33.2]} 26. Rxc1
{[%clk 0:01:17.6]} 26... Rc8 {[%clk 0:01:33.4]} 27. Rxc8 {[%clk 0:01:17.5]}
27... Bxc8 {[%clk 0:01:34.3]} 28. Kf2 {[%clk 0:01:18]} 28... Kd6 {[%clk
0:01:28.6]} 29. e4 {[%clk 0:01:18.4]} 29... Bd7 {[%clk 0:01:28.1]} 30. Ke3
{[%clk 0:01:18.9]} 30... Bb5 {[%clk 0:01:24.7]} 1/2-1/2